bitfinex-derivatives/quotes_SOLF0:USTF0_20241010
["timestamp","ask_amount","ask_price","bid_price","bid_amount"]
[1728593014739,11.32502,137.57,137.53,5.66]
[1728593015647,11.2,137.56,137.53,5.66]
[1728593016555,11.32502,137.57,137.53,5.66]
[1728593016746,0.12502,137.57,137.53,16.86]
[1728593017149,3.6384,137.56,137.53,20.4988]
[1728593017451,0.12502,137.57,137.53,22.68371]
[1728593017650,11.32502,137.57,137.53,19.04491]
[1728593017850,11.32502,137.57,137.53,16.86]
[1728593018156,0.12502,137.57,137.53,16.86]
[1728593018556,0.12502,137.57,137.53,19.04491]
[1728593019055,3.6387,137.54,137.53,16.86]
[1728593023366,3.6387,137.54,137.53,5.66]
[1728593023560,0.12502,137.57,137.53,5.66]
[1728593023561,11.32502,137.57,137.53,5.66]
[1728593024548,3.6385,137.55,137.53,5.66]
[1728593025261,3.6383,137.56,137.53,9.2988]
[1728593027251,3.6383,137.56,137.53,11.48371]
[1728593031659,3.6385,137.55,137.53,9.2988]
[1728593031957,11.2,137.55,137.53,5.66]
[1728593032259,3.6387,137.54,137.53,5.66]
[1728593033663,3.6386,137.55,137.53,5.66]
[1728593038265,3.6386,137.55,137.53,9.299]
[1728593038471,3.6386,137.55,137.53,11.48391]
[1728593041076,3.6386,137.55,137.53,7.84491]
[1728593041664,3.6387,137.54,137.53,7.84491]
[1728593044264,3.6384,137.56,137.53,11.48371]
[1728593044462,11.32502,137.57,137.53,11.48371]
[1728593044667,0.12502,137.57,137.53,7.84491]
[1728593044965,3.76312,137.57,137.54,14.8384]
[1728593045971,3.76312,137.57,137.54,17.02331]
[1728593047672,0.12502,137.57,137.54,13.38491]
[1728593047877,3.76292,137.57,137.56,11.2]
[1728593049774,11.32502,137.57,137.53,18.7757]
[1728593049981,11.32502,137.57,137.53,20.96061]
[1728593050480,3.6384,137.56,137.53,24.59941]
[1728593050678,11.32502,137.57,137.53,22.68371]
[1728593050975,3.6387,137.54,137.53,19.04491]
[1728593051977,3.6386,137.55,137.53,11.48391]
[1728593053477,0.12502,137.57,137.53,19.04491]
[1728593053684,3.6383,137.56,137.54,3.6386]
[1728593053979,0.12502,137.57,137.54,2.18491]
[1728593054378,3.76312,137.57,137.55,3.6384]
[1728593056680,3.6382,137.56,137.54,17.02351]
[1728593056881,3.6382,137.56,137.54,5.82351]
[1728593057180,3.6382,137.56,137.54,2.18491]
[1728593057574,11.2,137.56,137.53,5.66]
[1728593058176,3.6384,137.55,137.53,9.2989]
[1728593059484,3.6384,137.55,137.53,11.48381]
[1728593059669,3.6384,137.55,137.53,22.68381]
[1728593062678,3.6384,137.55,137.53,11.48381]
[1728593066283,11.32502,137.57,137.53,7.84491]
[1728593066488,3.6387,137.54,137.53,5.66]
[1728593072093,11.32502,137.57,137.53,5.66]
[1728593072283,3.6386,137.55,137.53,9.299]
[1728593073691,3.76312,137.57,137.55,3.6383]
[1728593073988,0.12502,137.57,137.54,11.2]
[1728593074383,0.12502,137.57,137.54,13.38491]
[1728593075299,3.76302,137.57,137.55,3.6384]
[1728593075483,3.76302,137.57,137.55,5.82331]
[1728593082391,0.12502,137.57,137.56,3.6382]
[1728593082592,0.12502,137.57,137.56,14.8382]
[1728593082797,0.12502,137.57,137.56,11.2]
[1728593083501,0.12502,137.57,137.55,17.02321]
[1728593084002,3.76292,137.57,137.55,17.02321]
[1728593086005,11.2,137.56,137.53,2.18491]
[1728593086204,11.2,137.56,137.52,9.75051]
[1728593086714,3.6385,137.55,137.52,20.95051]
[1728593087095,3.6385,137.55,137.52,24.58951]
[1728593087702,3.6385,137.55,137.53,3.639]
[1728593098504,3.639,137.53,137.52,5.64]
[1728593098709,11.2,137.53,137.5,2.18491]
[1728593099012,3.6395,137.51,137.5,5.64]
[1728593100007,3.6394,137.52,137.5,5.64]
[1728593100206,11.2,137.52,137.5,5.64]
[1728593100707,3.6398,137.5,137.49,2.18491]
[1728593101011,11.2,137.5,137.48,2.18491]
[1728593101199,3.6402,137.49,137.48,2.18491]
[1728593101399,11.2,137.5,137.47,7.82491]
[1728593101605,3.64,137.49,137.47,7.82491]
[1728593102398,3.64,137.49,137.47,11.46551]
[1728593103207,3.6397,137.51,137.48,3.6401]
[1728593103999,3.6397,137.51,137.48,5.82501]
[1728593104400,0.12502,137.57,137.48,2.18491]
[1728593104602,0.12502,137.57,137.52,11.2]
[1728593104809,11.32502,137.57,137.52,11.2]
[1728593105207,11.32502,137.57,137.52,13.38491]
[1728593105409,3.6386,137.55,137.52,17.02391]
[1728593105611,7.2914081,137.55,137.52,17.02391]
[1728593106211,3.6386,137.55,137.52,13.38491]
[1728593106512,11.32502,137.57,137.52,13.38491]
[1728593106713,3.6389,137.54,137.52,2.18491]
[1728593107320,3.639,137.53,137.51,2.18491]
[1728593107505,3.639,137.53,137.5,7.82491]
[1728593107700,11.2,137.53,137.5,7.82491]
[1728593108008,3.6395,137.51,137.5,5.64]
[1728593112108,11.2,137.51,137.47,13.37391]
[1728593112315,3.6399,137.5,137.47,9.73361]
[1728593113111,3.6399,137.5,137.47,13.37401]
[1728593114018,3.6399,137.5,137.48,3.6403]
[1728593114614,11.2,137.51,137.48,14.8403]
[1728593114819,3.6396,137.51,137.49,3.64]
[1728593115120,3.57360311,137.55,137.49,11.2]
[1728593115121,11.2,137.54,137.49,11.2]
[1728593115311,11.2,137.54,137.49,13.38491]
[1728593115511,3.6393,137.52,137.5,3.6396]
[1728593116612,3.6393,137.52,137.5,5.82451]
[1728593116916,3.6395,137.51,137.5,2.18491]
[1728593117422,11.2,137.54,137.5,2.18491]
[1728593118221,3.639,137.53,137.5,2.18491]
[1728593118417,3.639,137.53,137.5,7.82491]
[1728593118615,3.639,137.53,137.51,3.6395]
[1728593120722,3.62398399,137.55,137.5,19.02491]
[1728593120920,11.2,137.56,137.5,19.02491]
[1728593121219,3.6388,137.54,137.52,3.6391]
[1728593121423,3.6388,137.54,137.52,5.82401]
[1728593122723,3.6391,137.53,137.5,11.46441]
[1728593122922,3.6391,137.53,137.5,7.82491]
[1728593124122,3.6391,137.53,137.51,3.6393]
[1728593124727,14.78831199,137.55,137.51,3.6393]
[1728593125018,3.639,137.54,137.51,3.6393]
[1728593126421,3.639,137.54,137.51,5.82421]
[1728593137030,14.78831199,137.55,137.51,5.82421]
[1728593137333,11.2,137.52,137.48,7.80491]
[1728593137523,11.2,137.51,137.48,5.62]
[1728593138028,14.8397,137.51,137.49,3.64]
[1728593139833,11.2,137.5,137.47,2.18491]
[1728593140127,11.2,137.48,137.46,2.18491]
[1728593140323,3.6406,137.47,137.45,11.57093]
[1728593140523,3.6406,137.47,137.45,5.95093]
[1728593140827,11.2,137.48,137.45,2.30993]
[1728593141026,7.5626,137.52,137.46,3.6407]
[1728593141222,11.2,137.48,137.45,2.30993]
[1728593141619,11.2,137.48,137.47,3.6406]
[1728593145227,11.2,137.48,137.46,2.18491]
[1728593145429,11.2,137.48,137.46,5.82561]
[1728593146034,14.81666688,137.48,137.46,2.18491]
[1728593146228,14.8408,137.47,137.45,2.30993]
[1728593147725,7.5626,137.52,137.46,3.6407]
[1728593147726,11.2,137.49,137.46,3.6407]
[1728593148137,11.2,137.49,137.45,13.50993]
[1728593148334,14.8402,137.49,137.46,3.6408]
[1728593150430,3.6402,137.49,137.45,13.50993]
[1728593150625,1.9049,137.54,137.48,3.6403]
[1728593150838,11.2,137.51,137.48,3.6403]
[1728593151238,14.8397,137.51,137.48,3.6403]
[1728593151440,14.8397,137.51,137.48,5.82521]
[1728593151441,11.2,137.51,137.48,5.82521]
[1728593151939,3.6399,137.5,137.48,5.82521]
[1728593152132,11.2,137.49,137.48,2.18491]
[1728593152336,11.2,137.49,137.47,3.6404]
[1728593152538,14.8402,137.49,137.47,3.6404]
[1728593153541,11.2,137.49,137.46,7.80491]
[1728593154055,11.2,137.49,137.47,3.6403]
[1728593154527,11.2,137.49,137.46,7.80491]
[1728593154733,11.2,137.49,137.48,3.6403]
[1728593155039,14.84,137.5,137.48,3.6403]
[1728593155239,3.6393,137.52,137.5,3.6396]
[1728593155431,11.2,137.51,137.48,2.18491]
[1728593156132,11.2,137.53,137.49,16.82]
[1728593156334,3.6394,137.52,137.49,16.82]
[1728593156928,3.6394,137.52,137.49,19.00491]
[1728593157131,3.6394,137.52,137.5,3.6396]
[1728593157743,3.6394,137.52,137.5,5.82451]
[1728593158239,14.8394,137.52,137.5,5.82451]
[1728593158439,14.8394,137.52,137.5,3.6396]
[1728593158634,3.6394,137.52,137.5,3.6396]
[1728593161555,3.6391,137.53,137.51,3.6394]
[1728593162233,11.2,137.54,137.51,3.6394]
[1728593162640,11.2,137.52,137.49,11.44481]
[1728593162839,11.2,137.52,137.49,7.80491]
[1728593163142,3.6394,137.52,137.49,7.80491]
[1728593163845,3.6394,137.52,137.5,3.6396]
[1728593164546,3.6394,137.52,137.5,5.82451]
[1728593165543,14.8397,137.51,137.49,9.2599]
[1728593167434,14.8394,137.52,137.49,11.44481]
[1728593167740,11.2,137.53,137.5,3.6395]
[1728593168242,14.8392,137.53,137.5,3.6395]
[1728593168537,14.8392,137.53,137.5,5.82441]
[1728593170038,11.2,137.54,137.5,2.18491]
[1728593170241,14.8387,137.55,137.5,2.18491]
[1728593170447,14.8387,137.55,137.5,4.12071]
[1728593170642,3.6387,137.55,137.52,3.639]
[1728593170843,14.8387,137.55,137.52,5.62]
[1728593171248,14.8387,137.55,137.52,7.80491]
[1728593171449,14.8387,137.55,137.53,3.6389]
[1728593171646,3.6383,137.56,137.53,2.18491]
[1728593171851,0.12502,137.57,137.55,3.6384]
[1728593172442,0.12502,137.57,137.54,2.18491]
[1728593172748,0.12502,137.57,137.55,3.6382]
[1728593173552,3.76302,137.57,137.55,3.6382]
[1728593173948,3.76302,137.57,137.54,2.18491]
[1728593174148,0.12502,137.57,137.54,2.18491]
[1728593174547,0.12502,137.57,137.55,3.6383]
[1728593175553,3.76292,137.57,137.55,3.6383]
[1728593177565,0.12502,137.57,137.55,3.6383]
[1728593177746,0.12502,137.57,137.55,9.2583]
[1728593178352,3.76302,137.57,137.55,9.2583]
[1728593179248,0.12502,137.57,137.56,3.6382]
[1728593179456,0.12502,137.57,137.55,5.62]
[1728593180456,3.76302,137.57,137.55,9.2584]
[1728593181553,0.12502,137.57,137.55,9.2584]
[1728593184452,0.12502,137.57,137.56,3.6382]
[1728593185749,0.12502,137.57,137.56,14.8382]
[1728593186453,0.12502,137.57,137.56,17.02311]
[1728593186851,11.2,137.61,137.56,13.38491]
[1728593187062,14.837,137.61,137.56,13.38491]
[1728593187260,11.2,137.62,137.57,11.2]
[1728593187553,11.2,137.62,137.58,5.62]
[1728593187750,14.96162,137.63,137.59,11.2]
[1728593188258,14.96162,137.63,137.6,3.6369]
[1728593189662,14.96162,137.63,137.59,13.38491]
[1728593189967,14.96162,137.63,137.61,3.6367]
[1728593191364,14.96162,137.63,137.6,3.637]
[1728593193566,11.2,137.62,137.6,3.637]
[1728593193865,14.8371,137.61,137.59,2.18491]
[1728593194059,11.2,137.6,137.57,1.9032]
[1728593194260,11.2,137.6,137.57,7.78491]
[1728593194764,3.6375,137.59,137.57,11.42271]
[1728593194965,0.12502,137.63,137.56,2.18491]
[1728593194966,11.2,137.58,137.56,2.18491]
[1728593195165,1.9594,137.62,137.57,5.6]
[1728593195365,11.2,137.57,137.55,5.6]
[1728593195562,14.838,137.57,137.55,7.78491]
[1728593196066,14.838,137.57,137.55,11.42331]
[1728593197770,11.2,137.57,137.55,7.78491]
[1728593197966,11.2,137.58,137.56,3.6381]
[1728593198574,14.8378,137.58,137.56,3.6381]
[1728593198762,14.8378,137.58,137.55,11.42321]
[1728593199068,14.8378,137.58,137.54,5.6]
[1728593199069,11.2,137.56,137.54,5.6]
[1728593200070,3.6384,137.55,137.54,5.6]
[1728593202067,3.6384,137.55,137.54,7.78491]
[1728593203174,3.6384,137.55,137.54,2.18491]
[1728593203367,14.8383,137.56,137.54,2.18491]
[1728593204173,3.6384,137.55,137.54,2.18491]
[1728593205474,11.2,137.57,137.54,2.18491]
[1728593205663,14.838,137.57,137.55,3.6383]
[1728593206471,14.838,137.57,137.55,2.18491]
[1728593207864,11.2,137.57,137.55,2.18491]
[1728593208066,3.6382,137.56,137.54,3.6386]
[1728593212876,11.2,137.55,137.53,5.6]
[1728593213067,3.6387,137.54,137.53,5.6]
[1728593214273,3.7207242,137.57,137.54,3.6387]
[1728593214478,11.2,137.57,137.53,5.6]
[1728593214679,14.87450628,137.57,137.53,5.6]
[1728593215378,3.6386,137.55,137.53,3.6388]
[1728593220474,11.2,137.54,137.52,7.78491]
[1728593220674,3.639,137.53,137.52,2.18491]
[1728593221468,3.6392,137.52,137.51,5.72502]
[1728593221785,3.6392,137.52,137.51,2.30993]
[1728593222176,14.8392,137.52,137.51,2.30993]
[1728593222386,14.8392,137.52,137.51,0.12502]
[1728593224282,3.6391,137.53,137.51,0.12502]
[1728593224677,11.2,137.56,137.51,13.50993]
[1728593224983,11.2,137.56,137.52,5.6]
[1728593225172,11.2,137.56,137.53,3.6388]
[1728593225378,11.2,137.56,137.53,5.82371]
[1728593225582,14.8383,137.56,137.53,5.82371]
[1728593225779,11.2,137.56,137.53,5.82371]
[1728593226273,14.8382,137.56,137.54,3.6386]
[1728593226681,14.8382,137.56,137.53,2.18491]
[1728593226883,3.6385,137.55,137.53,5.82381]
[1728593228680,14.8383,137.56,137.53,5.82381]
[1728593230990,14.8383,137.56,137.53,2.18491]
[1728593231289,11.2,137.56,137.54,3.6385]
[1728593231875,11.2,137.56,137.54,5.82341]
[1728593232485,11.2,137.56,137.55,3.6384]
[1728593233087,14.8378,137.58,137.56,3.6381]
[1728593233489,14.8378,137.58,137.56,5.82301]
[1728593234192,11.2,137.59,137.56,2.18491]
[1728593234795,14.8375,137.59,137.56,5.82281]
[1728593234993,14.8375,137.59,137.56,2.18491]
[1728593235997,3.6373,137.6,137.57,3.6378]
[1728593236192,14.8373,137.6,137.57,3.6378]
[1728593236388,11.2,137.6,137.57,5.82271]
[1728593236597,3.6375,137.59,137.57,5.82271]
[1728593236796,3.6375,137.59,137.57,2.18491]
[1728593237589,3.6377,137.58,137.57,2.18491]
[1728593237795,3.6377,137.58,137.56,3.6381]
[1728593237993,3.6377,137.58,137.55,11.42321]
[1728593238294,3.6382,137.58,137.55,7.78491]
[1728593238493,11.2,137.59,137.55,7.78491]
[1728593238997,5.72502,137.63,137.55,7.78491]
[1728593239194,11.2,137.58,137.55,7.78491]
[1728593239600,11.2,137.58,137.56,3.6384]
[1728593240402,3.6381,137.58,137.56,3.6384]
[1728593240600,3.6381,137.58,137.56,5.82331]
[1728593240895,3.6385,137.56,137.55,5.6]
[1728593241494,14.8385,137.56,137.55,5.6]
[1728593243595,11.2,137.56,137.55,5.6]
[1728593244108,3.6384,137.57,137.55,5.6]
[1728593244109,11.2,137.57,137.55,5.6]
[1728593244312,14.8381,137.58,137.55,7.78491]
[1728593244706,14.8383,137.57,137.55,11.42361]
[1728593244907,11.2,137.56,137.55,5.6]
[1728593245309,14.8385,137.56,137.55,5.6]
[1728593246405,14.8385,137.56,137.53,3.6393]
[1728593246609,3.61773467,137.58,137.53,3.6393]
[1728593246610,14.8388,137.55,137.53,3.6393]
[1728593248120,14.8388,137.55,137.52,7.78491]
[1728593248414,14.8388,137.55,137.52,11.42441]
[1728593255417,11.2,137.55,137.52,11.42441]
[1728593255611,11.2,137.53,137.51,0.12502]
[1728593255805,11.2,137.52,137.51,0.12502]
[1728593256019,14.8396,137.52,137.51,0.12502]
[1728593258306,11.2,137.52,137.48,2.18491]
[1728593258509,11.2,137.49,137.47,2.18491]
[1728593258713,11.2,137.48,137.46,5.58]
[1728593259218,14.8408,137.48,137.46,9.2211]
[1728593260717,14.8408,137.48,137.46,5.58]
[1728593262510,3.6409,137.47,137.46,5.58]
[1728593264011,14.8409,137.47,137.46,5.58]
[1728593264213,3.6412,137.46,137.45,2.30993]
[1728593264412,14.8412,137.46,137.45,2.30993]
[1728593266018,14.8412,137.46,137.45,0.12502]
[1728593274023,3.65370461,137.5,137.45,0.12502]
[1728593274325,11.2,137.48,137.45,2.30993]
[1728593275225,14.8407,137.48,137.46,3.641]
[1728593278832,3.65370461,137.5,137.47,3.6409]
[1728593279029,11.2,137.49,137.47,3.6409]
[1728593279623,14.8405,137.49,137.47,3.6409]
[1728593280129,14.8407,137.48,137.46,3.6411]
[1728593281328,3.6409,137.47,137.45,5.95123]
[1728593282228,14.8408,137.48,137.45,5.95123]
[1728593282535,11.2,137.47,137.45,5.95123]
[1728593282737,11.2,137.46,137.45,2.30993]
[1728593282927,11.2,137.46,137.45,0.12502]
[1728593283435,14.8412,137.46,137.45,0.12502]
[1728593284136,11.2,137.46,137.45,0.12502]
[1728593284327,1.9105,137.51,137.45,0.12502]
[1728593284535,11.2,137.47,137.45,0.12502]
[1728593285432,14.841,137.47,137.45,3.76632]
[1728593285735,11.2,137.46,137.45,3.76632]
[1728593286531,11.2,137.46,137.45,0.12502]
[1728593289236,14.8412,137.46,137.45,0.12502]
[1728593289831,11.2,137.46,137.45,0.12502]
[1728593290035,14.841,137.47,137.45,0.12502]
[1728593290236,11.2,137.47,137.45,3.76632]
[1728593290531,11.2,137.47,137.45,5.95123]
[1728593290837,14.841,137.47,137.45,5.95123]
[1728593297348,14.841,137.47,137.45,2.30993]
[1728593297538,11.2,137.46,137.45,2.30993]
[1728593297743,11.2,137.46,137.45,0.12502]
[1728593298051,11.2,137.46,137.45,3.76652]
[1728593299446,14.8412,137.46,137.45,0.12502]
[1728593302453,3.6412,137.46,137.45,0.12502]
[1728593302743,11.2,137.48,137.45,0.12502]
[1728593303445,11.2,137.48,137.45,5.95123]
[1728593303446,14.8409,137.48,137.45,5.95123]
[1728593303640,1.9105,137.51,137.45,7.88993]
[1728593303836,11.2,137.49,137.45,7.88993]
[1728593304143,14.8405,137.49,137.46,3.6411]
[1728593304550,14.8405,137.49,137.46,5.82601]
[1728593306049,14.8405,137.49,137.46,2.18491]
[1728593306251,14.8405,137.49,137.47,3.6409]
[1728593306852,14.8405,137.49,137.47,5.82581]
[1728593309146,3.6405,137.49,137.47,5.82581]
[1728593309345,14.8405,137.49,137.47,5.82581]
[1728593310255,14.8405,137.49,137.47,2.18491]
[1728593310451,14.8405,137.49,137.45,5.70502]
[1728593310452,3.6411,137.47,137.45,9.34632]
[1728593310655,11.2,137.46,137.45,0.12502]
[1728593311560,14.8412,137.46,137.45,0.12502]
[1728593320661,3.6419,137.44,137.42,11.40701]
[1728593320861,11.2,137.43,137.42,11.40701]
[1728593323166,14.8419,137.44,137.42,11.40701]
[1728593323364,14.8419,137.44,137.42,5.82701]
[1728593323658,14.8419,137.44,137.42,2.18491]
[1728593326763,3.6419,137.44,137.42,5.82711]
[1728593329967,3.6414,137.46,137.43,3.6417]
[1728593330171,3.6414,137.46,137.42,13.38491]
[1728593330865,3.6414,137.46,137.43,3.6418]
[1728593331268,11.2,137.46,137.43,5.82671]
[1728593331467,3.6415,137.45,137.43,5.82671]
[1728593332673,14.8415,137.45,137.43,5.82671]
[1728593332871,14.8415,137.45,137.43,3.6418]
[1728593334075,11.2,137.45,137.44,3.6417]
[1728593334371,11.2,137.46,137.42,13.38491]
[1728593334575,11.2,137.46,137.42,15.24591]
[1728593334767,11.2,137.46,137.44,3.6415]
[1728593335970,11.2,137.46,137.44,9.2215]
[1728593336271,14.8412,137.46,137.44,9.2215]
[1728593337875,11.2,137.45,137.44,5.58]
[1728593338175,14.8415,137.45,137.44,5.58]
[1728593341177,11.2,137.45,137.44,5.58]
[1728593342277,11.2,137.47,137.44,5.58]
[1728593342582,3.6411,137.47,137.44,9.2215]
[1728593343081,11.2,137.48,137.44,7.76491]
[1728593343287,3.6405,137.49,137.44,18.96491]
[1728593343467,14.8405,137.49,137.44,18.96491]
[1728593343869,14.8403,137.5,137.45,11.2]
[1728593344067,0.12502,137.51,137.48,11.2]
[1728593344276,0.12502,137.51,137.5,3.6401]
[1728593344787,0.12502,137.51,137.5,5.82501]
[1728593347685,0.12502,137.57,137.5,13.38491]
[1728593347980,11.2,137.56,137.51,16.76]
[1728593348388,11.2,137.56,137.54,3.639]
[1728593348570,11.32502,137.57,137.52,13.38491]
[1728593348770,11.32502,137.57,137.53,5.56]
[1728593348971,0.12502,137.57,137.53,18.6629]
[1728593349169,0.12502,137.57,137.53,20.84781]
[1728593349667,11.32502,137.57,137.53,9.64781]
[1728593350271,11.32502,137.57,137.56,3.6385]
[1728593350483,11.32502,137.57,137.53,9.64781]
[1728593351072,11.32502,137.57,137.55,3.6387]
[1728593352482,11.32502,137.57,137.53,9.64781]
[1728593352680,11.32502,137.57,137.54,3.6391]
[1728593353281,14.96342,137.57,137.54,3.6391]
[1728593355371,14.96342,137.57,137.53,9.64781]
[1728593355372,11.32502,137.57,137.53,9.64781]
[1728593355573,0.12502,137.57,137.56,3.6385]
[1728593357090,0.12502,137.57,137.54,2.18491]
[1728593357091,0.12502,137.57,137.55,3.6387]
[1728593360180,0.12502,137.57,137.54,2.18491]
[1728593360390,14.96352,137.57,137.54,5.82391]
[1728593361081,14.96352,137.57,137.55,3.6388]
[1728593361277,11.32502,137.57,137.55,3.6388]
[1728593361483,0.12502,137.57,137.55,3.6388]
[1728593361684,0.12502,137.57,137.56,9.1985]
[1728593363987,0.12502,137.57,137.56,5.56]
[1728593372702,0.12502,137.57,137.56,9.1985]
[1728593373602,0.12502,137.57,137.56,5.56]
[1728593373802,3.76332,137.57,137.56,5.56]
[1728593374997,14.96332,137.57,137.56,5.56]
[1728593375296,3.6387,137.56,137.54,5.56]
[1728593375903,3.6385,137.56,137.54,5.56]
[1728593377293,3.6385,137.56,137.53,7.72711]
[1728593377503,3.6385,137.56,137.52,13.065]
[1728593377504,11.2,137.54,137.52,5.56]
[1728593378013,3.6393,137.53,137.52,5.56]
[1728593379708,11.2,137.54,137.52,5.56]
[1728593379892,14.8392,137.54,137.52,5.56]
[1728593389503,3.6387,137.56,137.53,3.6393]
[1728593389707,11.2,137.56,137.53,3.6393]
[1728593390508,3.6388,137.55,137.53,3.6393]
[1728593390809,14.8388,137.55,137.53,3.6393]
[1728593391214,14.8388,137.55,137.52,7.74491]
[1728593391415,14.8393,137.54,137.52,5.56]
[1728593393713,3.6393,137.54,137.52,5.56]
[1728593394026,3.6393,137.54,137.52,9.1996]
[1728593394210,11.2,137.55,137.52,7.74491]
[1728593394415,14.8387,137.56,137.53,3.6392]
[1728593396111,3.6389,137.55,137.53,3.6392]
[1728593396930,3.6393,137.54,137.52,7.74491]
[1728593397114,11.2,137.54,137.52,5.56]
[1728593397624,3.6393,137.53,137.52,5.56]
[1728593398217,14.8389,137.55,137.52,5.56]
[1728593398721,3.6389,137.55,137.53,3.6393]
[1728593399122,341.0,137.66,137.54,11.2]
[1728593399324,11.32502,137.63,137.57,11.2]
[1728593399535,11.32502,137.63,137.58,5.56]
[1728593399825,15.04792772,137.63,137.58,5.56]
[1728593400029,3.6372,137.62,137.59,3.6376]
[1728593400529,11.2,137.61,137.59,3.6376]
[1728593400824,14.8373,137.61,137.59,3.6376]
[1728593405014,11.2,137.61,137.59,3.6376]
[1728593405215,14.8371,137.62,137.59,3.6376]
[1728593406730,11.2,137.61,137.59,3.6376]
[1728593407123,14.8372,137.61,137.59,3.6376]
[1728593408024,11.2,137.61,137.58,9.1979]
[1728593409031,14.8373,137.61,137.58,9.1979]
[1728593409933,14.8373,137.61,137.58,9.1779]
[1728593410116,3.6375,137.6,137.58,9.1779]
[1728593412835,11.2,137.6,137.58,5.54]
[1728593413143,3.84792772,137.63,137.56,5.54]
[1728593413144,11.2,137.59,137.56,5.54]
[1728593413431,11.2,137.6,137.56,16.74]
[1728593414233,14.8377,137.6,137.57,3.6381]
[1728593414630,11.2,137.6,137.57,3.6381]
[1728593414935,3.6379,137.59,137.56,11.36331]
[1728593416142,3.6379,137.59,137.56,7.72491]
[1728593416434,3.6379,137.59,137.57,3.6383]
[1728593417338,3.6379,137.59,137.57,9.1783]
[1728593419434,3.6379,137.59,137.57,3.6383]
[1728593419935,3.6379,137.59,137.56,5.54]
[1728593420142,14.838,137.58,137.55,9.1788]
[1728593420343,11.2,137.58,137.55,9.1788]
[1728593421440,14.8384,137.57,137.54,5.82381]
[1728593422335,11.2,137.56,137.54,2.18491]
[1728593422534,11.2,137.55,137.51,0.12502]
[1728593422737,11.2,137.53,137.51,0.12502]
[1728593422938,11.2,137.53,137.51,3.76472]
[1728593423934,3.6387,137.56,137.53,3.6393]
[1728593426734,3.6387,137.56,137.54,3.639]
[1728593427734,1.9359,137.6,137.54,11.2]
[1728593427946,11.2,137.59,137.54,18.92491]
[1728593428339,14.8379,137.59,137.56,3.6384]
[1728593428837,5.21012772,137.63,137.56,11.2]
[1728593429039,11.2,137.61,137.57,5.54]
[1728593429445,14.8374,137.61,137.58,3.6379]
[1728593429948,3.6374,137.61,137.57,7.72491]
[1728593430138,11.2,137.61,137.59,3.6377]
[1728593430536,11.32502,137.63,137.59,3.6376]
[1728593430729,11.32502,137.63,137.58,11.2]
[1728593430730,14.96182,137.63,137.58,11.2]
[1728593431137,14.96182,137.63,137.6,3.6373]
[1728593431534,14.96182,137.63,137.59,11.2]
[1728593431739,14.96182,137.63,137.57,7.72491]
[1728593431740,0.12502,137.63,137.62,3.637]
[1728593434748,0.12502,137.63,137.6,16.74]